bitfinex/quotes_BTCUSD_20240908
["timestamp","ask_amount","ask_price","bid_price","bid_amount"]
[1725836647873,0.1911,54766.0,54762.0,0.014]
[1725836648108,0.1911,54766.0,54763.0,0.0160091]
[1725836648109,0.0879,54766.0,54763.0,0.0160091]
[1725836648347,0.0869,54766.0,54764.0,0.014]
[1725836648586,0.232976,54766.0,54764.0,0.014]
[1725836648816,0.0869,54766.0,54765.0,0.01760951]
[1725836649544,0.0879,54766.0,54765.0,0.01760951]
[1725836649751,0.233976,54766.0,54765.0,0.01760951]
[1725836650196,0.233976,54766.0,54763.0,0.014]
[1725836650197,0.0879,54766.0,54763.0,0.014]
[1725836650438,0.0879,54766.0,54763.0,0.028]
[1725836650669,0.23276206,54766.0,54763.0,0.014]
[1725836650886,0.146081,54764.0,54763.0,0.014]
[1725836651106,0.146091,54761.0,54753.0,0.292218]
[1725836651329,0.292172,54763.0,54756.0,0.1461]
[1725836651561,0.292172,54763.0,54754.0,0.05707177]
[1725836651562,0.146094,54759.0,54754.0,0.20317677]
[1725836651786,0.08650106,54766.0,54755.0,0.04980248]
[1725836652002,0.53267039,54766.0,54765.0,0.014]
[1725836652218,0.92482239,54766.0,54765.0,0.014]
[1725836653166,0.146097,54759.0,54754.0,0.20317877]
[1725836653440,0.146098,54758.0,54755.0,0.04970278]
[1725836653682,0.146098,54758.0,54754.0,0.20317877]
[1725836654278,0.146098,54758.0,54756.0,0.014]
[1725836654886,0.146098,54758.0,54754.0,0.20317877]
[1725836655085,0.147098,54758.0,54754.0,0.23117877]
[1725836655295,0.147098,54758.0,54755.0,0.02328088]
[1725836655707,0.146098,54758.0,54755.0,0.02328088]
[1725836655926,0.147098,54758.0,54756.0,0.014]
[1725836656572,0.147098,54758.0,54756.0,0.028]
[1725836656997,0.001,54758.0,54756.0,0.028]
[1725836657223,0.001,54758.0,54756.0,0.08283067]
[1725836657425,0.146095,54759.0,54756.0,0.05483067]
[1725836657635,0.001,54758.0,54756.0,0.06883067]
[1725836657845,0.147097,54758.0,54756.0,0.06883067]
[1725836658044,0.438279,54760.0,54756.0,0.06883067]
[1725836658254,0.48559439,54766.0,54756.0,0.014]
[1725836658255,0.1461,54757.0,54756.0,0.014]
[1725836658459,0.5279,54757.0,54756.0,0.028]
[1725836658663,0.6279,54757.0,54756.0,0.028]
[1725836658869,0.6279,54757.0,54756.0,0.014]
[1725836659284,0.6279,54757.0,54756.0,0.028]
[1725836659507,0.6279,54757.0,54756.0,0.014]
[1725836659771,0.6279,54757.0,54756.0,0.028]
[1725836660000,0.6279,54757.0,54756.0,0.014]
[1725836660414,0.5383,54757.0,54756.0,0.014]
[1725836660867,0.2471,54757.0,54756.0,0.028]
[1725836661090,0.101,54757.0,54756.0,0.1548742]
[1725836661735,0.001,54757.0,54756.0,0.1548742]
[1725836662153,0.101,54757.0,54756.0,0.1548742]
[1725836663186,0.101,54757.0,54756.0,0.15469352]
[1725836663422,0.001,54757.0,54756.0,0.15632152]
[1725836664092,0.001,54757.0,54756.0,0.30242352]
[1725836664325,0.001,54757.0,54756.0,0.59462852]
[1725836665048,0.001,54757.0,54756.0,0.04702152]
[1725836665278,0.101,54757.0,54756.0,0.04702152]
[1725836665501,0.101,54757.0,54756.0,0.02944732]
[1725836666429,0.101,54757.0,54756.0,0.17554932]
[1725836666659,0.001,54757.0,54756.0,0.17554932]
[1725836666881,0.001,54757.0,54756.0,0.46775432]
[1725836671287,0.001,54757.0,54756.0,0.87115932]
[1725836671524,0.001,54757.0,54756.0,1.00414713]
[1725836671787,0.001,54757.0,54756.0,1.40565213]
[1725836672033,0.001,54757.0,54756.0,1.70785713]
[1725836672734,0.001,54757.0,54756.0,1.69403781]
[1725836673216,0.001,54757.0,54756.0,1.70703781]
[1725836673464,0.001,54757.0,54756.0,2.00624281]
[1725836673699,0.000815,54766.0,54765.0,1.226849]
[1725836673954,0.000815,54766.0,54765.0,1.41371874]
[1725836674180,0.000815,54766.0,54765.0,1.70587574]
[1725836674669,0.000815,54766.0,54765.0,1.71487574]
[1725836674921,0.00081,54780.0,54779.0,0.16486974]
[1725836675260,0.00081,54780.0,54779.0,1.10766171]
[1725836675485,0.00081,54780.0,54779.0,1.42274371]
[1725836676219,0.00081,54780.0,54779.0,1.43674371]
[1725836676452,0.00081,54780.0,54779.0,1.45074371]
[1725836676689,0.00081,54780.0,54779.0,1.43674371]
[1725836676921,0.00081,54780.0,54779.0,1.44774371]
[1725836677148,0.00081,54780.0,54779.0,1.46174371]
[1725836677398,0.00081,54780.0,54779.0,1.43374371]
[1725836677631,0.00081,54780.0,54779.0,1.44774371]
[1725836677866,0.00081,54780.0,54779.0,1.46074371]
[1725836678107,0.00081,54780.0,54779.0,1.46174371]
[1725836678352,0.00081,54780.0,54779.0,1.73882571]
[1725836678604,0.00081,54780.0,54779.0,1.75382571]
[1725836678863,0.00081,54780.0,54779.0,1.73982571]
[1725836679108,0.00081,54780.0,54779.0,1.46174371]
[1725836679358,0.00081,54780.0,54779.0,1.73982571]
[1725836679620,0.00081,54780.0,54779.0,1.42374371]
[1725836679838,0.00081,54780.0,54779.0,1.44774371]
[1725836680353,0.00081,54781.0,54780.0,1.224669]
[1725836680592,0.00094,54788.0,54787.0,0.80532974]
[1725836680833,0.00094,54788.0,54787.0,1.38940974]
[1725836681069,0.00094,54788.0,54787.0,1.40240974]
[1725836681537,0.00094,54788.0,54787.0,1.40140974]
[1725836681779,0.00094,54788.0,54787.0,1.45264434]
[1725836682006,0.00094,54788.0,54787.0,1.46264434]
[1725836682227,0.00094,54788.0,54787.0,1.47664434]
[1725836682723,0.00094,54788.0,54787.0,1.47764434]
[1725836682965,0.00094,54788.0,54787.0,1.78968434]
[1725836683193,0.00094,54788.0,54787.0,1.80268434]
[1725836683447,0.00094,54788.0,54787.0,1.49664434]
[1725836683671,0.00082,54797.0,54796.0,1.29214174]
[1725836683942,0.00082,54797.0,54796.0,1.39964174]
[1725836684179,0.00082,54797.0,54796.0,1.40964174]
[1725836684391,0.00081,54808.0,54807.0,1.18563474]
[1725836684616,0.00081,54808.0,54807.0,1.41936934]
[1725836684840,0.00081,54808.0,54807.0,1.44336934]
[1725836685075,0.00081,54808.0,54807.0,1.44236934]
[1725836685325,0.00081,54808.0,54807.0,1.45336934]
[1725836686024,0.00081,54808.0,54807.0,1.47336934]
[1725836686277,0.00081,54808.0,54807.0,1.47236934]
[1725836686720,0.00081,54808.0,54807.0,1.47336934]
[1725836686932,0.00081,54808.0,54807.0,1.50036934]
[1725836687373,0.00081,54808.0,54807.0,1.48636934]
[1725836687611,0.00081,54808.0,54807.0,1.48736934]
[1725836688099,0.00081,54808.0,54807.0,1.48636934]
[1725836688332,0.00081,54808.0,54807.0,1.48736934]
[1725836688569,0.00081,54808.0,54807.0,1.50136934]
[1725836689498,0.00081,54808.0,54807.0,1.77930234]
[1725836689708,0.00081,54821.0,54820.0,0.99752974]
[1725836690190,0.00081,54821.0,54820.0,0.99852974]
[1725836690597,0.00081,54821.0,54820.0,0.99752974]
[1725836690829,0.00081,54821.0,54820.0,1.01152974]
[1725836691058,0.00081,54821.0,54820.0,1.29039374]
[1725836691287,0.00081,54821.0,54820.0,1.36462834]
[1725836691546,0.00081,54821.0,54820.0,1.37862834]
[1725836692023,0.00081,54821.0,54820.0,1.06276434]
[1725836692734,0.00081,54821.0,54820.0,1.39262834]
[1725836693014,0.00081,54821.0,54820.0,1.37862834]
[1725836693230,0.00081,54821.0,54820.0,1.39262834]
[1725836693445,0.00081,54821.0,54820.0,1.36462834]
[1725836693668,0.00081,54821.0,54820.0,1.39262834]
[1725836694152,0.00081,54821.0,54820.0,1.36462834]
[1725836694380,0.00081,54821.0,54820.0,1.37762834]
[1725836694613,0.00081,54821.0,54820.0,1.38862834]
[1725836694846,0.00081,54821.0,54820.0,1.42262834]
[1725836695332,0.00081,54821.0,54820.0,1.42162834]
[1725836695605,0.0772,54839.0,54838.0,0.437652]
[1725836695854,0.0772,54839.0,54838.0,0.64528694]
[1725836696103,0.00081,54843.0,54842.0,0.43762]
[1725836696335,0.00081,54843.0,54842.0,0.60148974]
[1725836697034,0.0812,54854.0,54848.0,0.001]
[1725836697280,0.0812,54854.0,54853.0,0.16386974]
[1725836697510,0.227041,54854.0,54853.0,0.16386974]
[1725836697737,0.0812,54854.0,54853.0,0.16386974]
[1725836698466,0.0812,54854.0,54853.0,0.30971374]
[1725836698666,0.0812,54854.0,54853.0,0.36094834]
[1725836698933,0.291637,54863.0,54855.0,0.145837]
[1725836699191,0.291699,54852.0,54844.0,0.145867]
[1725836699461,0.00699061,54863.0,54853.0,0.028]
[1725836699699,0.437524,54854.0,54853.0,0.014]
[1725836699932,0.145849,54851.0,54850.0,0.16386974]
[1725836700169,0.391683,54854.0,54850.0,0.16386974]
[1725836700401,0.145849,54851.0,54850.0,0.19484291]
[1725836700642,0.291689,54853.0,54850.0,0.16386974]
[1725836700883,0.14586,54848.0,54846.0,0.16386974]
[1725836701376,0.14585,54851.0,54846.0,0.16386974]
[1725836701603,0.14585,54851.0,54847.0,0.03097327]
[1725836701836,0.100814,54854.0,54847.0,0.03097327]
[1725836702074,0.145849,54851.0,54846.0,0.30973074]
[1725836702313,0.0826,54853.0,54846.0,0.16386974]
[1725836702539,0.14585,54851.0,54850.0,0.014]
[1725836702783,0.437548,54851.0,54850.0,0.014]
[1725836703027,0.437548,54851.0,54846.0,0.16386974]
[1725836703028,0.145856,54849.0,54846.0,0.16386974]
[1725836703285,0.291699,54851.0,54846.0,0.17786974]
[1725836703286,0.145852,54850.0,54846.0,0.17786974]
[1725836703531,0.145855,54849.0,54846.0,0.17786974]
[1725836703765,0.02858749,54850.0,54849.0,0.145854]
[1725836704005,0.100814,54854.0,54852.0,0.145845]
[1725836704254,0.291645,54862.0,54846.0,0.04637347]
[1725836704255,0.0793,54864.0,54853.0,0.24656974]
[1725836704480,0.02858479,54861.0,54854.0,0.1017]
[1725836704739,0.0793,54871.0,54862.0,0.1017]
[1725836704976,0.02858222,54869.0,54868.0,0.16386974]
[1725836705423,0.02858222,54869.0,54868.0,0.36980411]
[1725836705673,0.00535916,54869.0,54868.0,0.66141211]
[1725836706030,0.01908031,54890.0,54875.0,0.902627]
[1725836706293,0.31973866,54890.0,54881.0,0.097]
[1725836706542,0.00024175,54908.0,54889.0,0.1052]
[1725836706543,0.145719,54901.0,54889.0,0.1052]
[1725836706815,0.291521,54885.0,54877.0,0.16386974]
[1725836707020,0.0009,54889.0,54873.0,0.16386974]
[1725836707021,0.291524,54884.0,54873.0,0.16386974]
[1725836707247,0.145783,54877.0,54873.0,0.16386974]
[1725836707492,0.0009,54889.0,54875.0,0.028]
[1725836707714,0.145767,54882.0,54875.0,0.028]
[1725836707978,0.0801,54881.0,54875.0,0.028]
[1725836708227,0.437349,54876.0,54875.0,0.028]
[1725836708706,0.145791,54873.0,54867.0,0.145806]
[1725836708988,0.0799,54868.0,54860.0,0.1014]
[1725836709232,0.1,54872.0,54860.0,0.31885856]
[1725836709445,0.245795,54872.0,54865.0,0.21745856]
[1725836709669,0.1,54872.0,54869.0,0.145801]
[1725836709894,0.1,54872.0,54866.0,0.291617]
[1725836710121,0.0822,54874.0,54868.0,0.291608]
[1725836710350,0.02857644,54880.0,54875.0,0.145784]
[1725836710608,0.145776,54879.0,54872.0,0.0959]
[1725836710899,0.291536,54882.0,54875.0,0.145784]
[1725836710900,0.1,54878.0,54875.0,0.145784]
[1725836711125,0.1,54878.0,54873.0,0.291581]
[1725836711363,0.02947193,54888.0,54872.0,0.13565586]
[1725836711364,0.0813,54887.0,54875.0,0.22110298]
[1725836711575,0.0813,54887.0,54882.0,0.21745856]
[1725836711832,0.0799,54892.0,54884.0,0.145761]
[1725836712059,0.0799,54892.0,54885.0,0.145758]
[1725836712273,0.145745,54891.0,54885.0,0.145758]
[1725836712517,0.145745,54891.0,54883.0,0.097]
[1725836712518,0.291487,54891.0,54883.0,0.097]
[1725836712735,0.02856956,54895.0,54886.0,0.21745856]
[1725836712995,0.02856956,54895.0,54890.0,0.145745]
[1725836713237,0.14573,54896.0,54890.0,0.145744]
[1725836713510,0.145732,54895.0,54890.0,0.145744]
[1725836713750,0.145732,54895.0,54886.0,0.21745856]
[1725836713751,0.145752,54888.0,54886.0,0.21745856]
[1725836713988,0.145745,54891.0,54885.0,0.156758]
[1725836714496,0.145746,54890.0,54885.0,0.011]
[1725836714757,0.145746,54890.0,54885.0,0.156758]
[1725836714994,0.145741,54892.0,54886.0,0.145755]
[1725836715238,0.145747,54890.0,54885.0,0.011]
[1725836715474,0.145747,54890.0,54885.0,0.021]
[1725836715703,0.02856682,54893.0,54885.0,0.021]
[1725836715704,0.291487,54891.0,54885.0,0.01]
[1725836715946,0.291499,54889.0,54876.0,0.25313444]
[1725836716180,0.145772,54880.0,54878.0,0.1009]
[1725836716673,0.0773,54884.0,54878.0,0.1009]
[1725836716895,0.145771,54881.0,54878.0,0.1009]
[1725836717353,0.145767,54882.0,54878.0,0.1009]
[1725836717855,0.14577,54881.0,54878.0,0.1009]
[1725836718085,0.145765,54883.0,54878.0,0.1009]
[1725836718349,0.14576,54885.0,54879.0,0.145774]
[1725836718559,0.145761,54885.0,54880.0,0.04781326]
[1725836718854,0.145763,54884.0,54880.0,0.04781326]
[1725836719070,0.02856963,54884.0,54880.0,0.04781326]
[1725836719292,0.17433263,54884.0,54880.0,0.04781326]
[1725836719528,0.145767,54882.0,54880.0,0.04781326]
[1725836719766,0.14577,54881.0,54878.0,0.1149]
[1725836719989,0.145766,54883.0,54880.0,0.014]
[1725836720227,0.145767,54882.0,54880.0,0.014]
[1725836720459,0.145769,54881.0,54880.0,0.014]
[1725836720706,0.145768,54882.0,54880.0,0.02549]
[1725836720934,0.145768,54882.0,54880.0,0.014]
[1725836721476,0.02856963,54884.0,54881.0,0.36322556]
[1725836721692,0.02856963,54884.0,54881.0,0.21745856]
[1725836721915,0.02856963,54884.0,54883.0,0.145764]
[1725836722161,0.02856963,54884.0,54881.0,0.21745856]
[1725836722162,0.145759,54885.0,54881.0,0.21745856]
[1725836722393,0.291511,54887.0,54881.0,0.21745856]
[1725836722624,0.1,54888.0,54878.0,0.1149]
[1725836722625,0.291519,54885.0,54878.0,0.1149]
[1725836722861,0.1,54888.0,54878.0,0.1149]
[1725836722862,0.1,54888.0,54878.0,0.16329316]
[1725836723125,0.437301,54882.0,54881.0,0.014]
[1725836723374,0.437301,54882.0,54865.0,0.0966]
[1725836723375,0.1775,54882.0,54865.0,0.0966]
[1725836723610,0.1775,54882.0,54859.0,0.369754]
[1725836723611,0.0775,54868.0,54860.0,0.0966]
[1725836723826,0.291625,54865.0,54860.0,0.0966]
[1725836724046,0.145823,54861.0,54860.0,0.0966]
[1725836724768,0.0775,54868.0,54860.0,0.0966]
[1725836725198,0.02858096,54864.0,54863.0,0.145817]
[1725836725200,0.02858096,54864.0,54863.0,0.437452]
[1725836725423,0.02858096,54864.0,54863.0,0.145817]
[1725836725647,0.0827,54873.0,54864.0,0.145814]
[1725836725888,0.145807,54867.0,54861.0,0.00966]
[1725836726097,0.145807,54867.0,54860.0,0.38825]
[1725836726332,0.145807,54867.0,54860.0,0.40225]
[1725836726544,0.14581,54866.0,54863.0,0.014]
[1725836726761,0.145812,54865.0,54864.0,0.014]
[1725836726971,0.291609,54868.0,54864.0,0.014]
[1725836727195,0.437436,54865.0,54864.0,0.014]
[1725836727430,0.8019651,54865.0,54864.0,0.014]
[1725836727774,1.203284,54865.0,54864.0,0.014]
[1725836728239,1.02074,54862.0,54861.0,0.014]
[1725836728469,1.12074,54862.0,54861.0,0.014]
[1725836728675,1.12074,54862.0,54848.0,0.1011]
[1725836728676,0.291646,54861.0,54848.0,0.1011]
[1725836728889,0.14585,54851.0,54848.0,0.125959]
[1725836729149,0.291674,54856.0,54848.0,0.1011]
[1725836729379,0.145843,54854.0,54848.0,0.1011]
[1725836729609,0.145843,54854.0,54849.0,0.145854]
[1725836729873,0.291674,54856.0,54848.0,0.1011]
[1725836730076,0.1,54855.0,54848.0,0.1011]
[1725836730300,0.145851,54851.0,54848.0,0.14770426]
[1725836730519,0.1,54855.0,54848.0,0.1011]
[1725836730742,0.14586,54847.0,54846.0,0.001626]
[1725836730979,0.0822,54852.0,54846.0,0.001626]
[1725836731202,0.245845,54853.0,54848.0,0.159855]
[1725836731435,0.1,54855.0,54853.0,0.145842]
[1725836731691,0.145832,54858.0,54851.0,0.291698]
[1725836731919,0.145831,54858.0,54853.0,0.145843]
[1725836732150,0.145831,54858.0,54851.0,0.291698]
[1725836732151,0.145834,54857.0,54852.0,0.0818]
[1725836732383,0.145836,54856.0,54852.0,0.0818]
[1725836732596,0.145836,54856.0,54853.0,0.014]
[1725836732850,0.145836,54856.0,54852.0,0.227646]
[1725836733061,0.145836,54856.0,54852.0,0.0818]
[1725836733294,0.291646,54861.0,54854.0,0.14584]
[1725836733515,0.291646,54861.0,54853.0,0.014]
[1725836733516,0.1,54860.0,54853.0,0.014]
[1725836733734,0.1,54860.0,54856.0,0.145836]
[1725836733957,0.1,54860.0,54853.0,0.014]
[1725836733958,0.245826,54860.0,54853.0,0.014]
[1725836734177,0.145829,54859.0,54853.0,0.028]
[1725836734395,0.1,54858.0,54853.0,0.173842]
[1725836734612,0.1,54858.0,54854.0,0.14584]
[1725836735068,0.1,54858.0,54856.0,0.013]
[1725836735312,0.4375,54857.0,54856.0,0.013]
[1725836735536,0.145848,54852.0,54850.0,0.0939]
[1725836735768,0.437529,54854.0,54851.0,0.0239759]
[1725836735983,0.291689,54853.0,54850.0,0.0939]
[1725836736225,0.437548,54851.0,54850.0,0.0939]
[1725836737871,0.437548,54851.0,54850.0,0.095526]
[1725836738327,0.437548,54851.0,54850.0,0.123526]
[1725836738784,0.0285849,54853.0,54850.0,0.1220412]
[1725836738991,0.0285849,54853.0,54852.0,0.36330556]
[1725836739219,0.1758,54865.0,54852.0,0.50914956]
[1725836739220,0.1,54859.0,54852.0,0.50914956]
[1725836739454,0.245829,54859.0,54853.0,0.09368978]
[1725836739690,0.1,54859.0,54854.0,0.14584]
[1725836739908,0.1,54859.0,54854.0,0.0795]
[1725836740135,0.1,54859.0,54854.0,0.225341]
[1725836740359,0.391657,54859.0,54855.0,0.04648818]
[1725836740611,0.245829,54859.0,54854.0,0.0795]
[1725836740840,0.245829,54859.0,54855.0,0.0973]
[1725836741978,0.145832,54858.0,54855.0,0.0973]
[1725836742218,0.437508,54856.0,54855.0,0.1113]
[1725836742422,0.437508,54856.0,54855.0,0.009]
[1725836743124,0.437517,54855.0,54854.0,0.014]
[1725836743372,0.145841,54854.0,54851.0,0.092]
[1725836743841,0.145839,54855.0,54851.0,0.092]
[1725836744053,0.1,54859.0,54858.0,0.145831]
[1725836744301,0.02858446,54861.0,54860.0,0.729127]
[1725836744539,0.145804,54869.0,54860.0,0.583302]
[1725836744748,0.291601,54870.0,54858.0,0.1136731]
[1725836744749,0.1458,54870.0,54863.0,0.0914]
[1725836744960,0.145805,54868.0,54863.0,0.0914]
[1725836745475,0.02858026,54870.0,54863.0,0.0914]
[1725836745476,0.145811,54866.0,54863.0,0.0914]
[1725836745701,0.391616,54867.0,54863.0,0.0914]
[1725836745913,0.29163,54864.0,54858.0,0.0917]
[1725836746144,0.145821,54862.0,54858.0,0.0917]
[1725836746359,0.145821,54862.0,54858.0,0.23753]
[1725836746571,0.1,54867.0,54863.0,0.013]
[1725836746763,0.02858095,54864.0,54863.0,0.013]
[1725836747016,0.02858095,54864.0,54860.0,0.014]
[1725836747255,0.145821,54862.0,54858.0,0.251529]
[1725836747463,0.145824,54861.0,54858.0,0.1197]
[1725836747899,0.145826,54860.0,54858.0,0.1057]
[1725836748137,0.02958095,54864.0,54858.0,0.1057]
[1725836748374,0.02858095,54864.0,54863.0,0.437452]
[1725836748574,0.02858095,54864.0,54862.0,0.0964]
[1725836748818,0.145811,54866.0,54863.0,0.014]
[1725836749077,0.145805,54868.0,54863.0,0.159816]
[1725836749329,0.14581,54866.0,54862.0,0.0964]
[1725836749552,0.291609,54868.0,54862.0,0.0964]
[1725836749760,0.145817,54863.0,54862.0,0.0964]
[1725836750221,0.437452,54863.0,54862.0,0.0964]
[1725836750433,0.4660326,54863.0,54862.0,0.1104]
[1725836750743,0.0285806,54863.0,54862.0,0.1104]
[1725836750774,0.0285806,54863.0,54862.0,0.40204]
[1725836750999,0.0285806,54863.0,54862.0,0.24222]
[1725836751210,0.391609,54868.0,54862.0,0.0964]
[1725836751410,0.391609,54868.0,54862.0,0.1104]
[1725836751652,0.14581,54866.0,54862.0,0.27022]
[1725836752070,0.391609,54868.0,54862.0,0.27022]
[1725836752071,0.537415,54868.0,54863.0,0.145817]
[1725836752268,0.245806,54868.0,54863.0,0.2006043]
[1725836752406,0.145807,54867.0,54863.0,0.145817]
[1725836752648,0.1,54868.0,54862.0,0.402036]
[1725836752908,0.02857964,54872.0,54871.0,0.145796]
[1725836753149,0.02857964,54872.0,54871.0,0.823782]
[1725836753643,0.291525,54884.0,54880.0,0.145771]
[1725836753644,0.145762,54884.0,54880.0,0.145771]
[1725836753866,0.145754,54887.0,54882.0,0.0948]
[1725836754083,0.02857134,54884.0,54882.0,0.0948]
[1725836755143,0.02857134,54884.0,54882.0,0.0998]
[1725836755371,0.02857134,54884.0,54883.0,0.437293]
[1725836755576,0.02857134,54884.0,54883.0,0.821122]
[1725836755830,0.02857134,54884.0,54883.0,1.14293862]
[1725836756325,0.000813,54890.0,54886.0,0.145755]
[1725836756535,0.000813,54890.0,54886.0,0.145756]
[1725836756970,0.000813,54890.0,54883.0,0.1063]
[1725836757205,0.145761,54884.0,54883.0,0.1063]
[1725836757412,0.145757,54886.0,54883.0,0.1063]
[1725836757630,0.291509,54887.0,54883.0,0.1063]
[1725836757631,0.14576,54885.0,54883.0,0.1063]
[1725836757843,0.145759,54885.0,54883.0,0.1063]
[1725836758062,0.145761,54884.0,54883.0,0.1063]
[1725836758315,0.145761,54884.0,54883.0,0.0923]
[1725836758738,0.32008309,54886.0,54885.0,0.728795]
[1725836758739,0.02856909,54886.0,54885.0,0.728795]
[1725836758994,0.02856909,54886.0,54885.0,0.74823556]
[1725836759233,0.000813,54890.0,54886.0,0.291512]
[1725836759479,0.000813,54890.0,54888.0,0.145749]
[1725836759702,0.000813,54890.0,54887.0,0.145752]
[1725836759924,0.000813,54890.0,54886.0,0.291512]
[1725836759925,0.000813,54890.0,54888.0,0.145751]
[1725836760141,0.145749,54889.0,54885.0,0.31095856]
[1725836760385,0.000813,54890.0,54888.0,0.14575]
[1725836760598,0.000813,54890.0,54885.0,0.0935]
[1725836760599,0.000813,54890.0,54889.0,0.145748]
[1725836761066,0.02937912,54890.0,54889.0,0.145748]
[1725836761770,0.02937912,54890.0,54889.0,0.437245]
[1725836762012,0.02937912,54890.0,54889.0,0.159748]
[1725836762219,0.02937912,54890.0,54889.0,0.465245]
[1725836762438,0.02937912,54890.0,54889.0,0.544745]
[1725836762664,0.02937912,54890.0,54889.0,0.558745]
[1725836762885,0.02937912,54890.0,54889.0,0.1075]
[1725836763136,0.02937912,54890.0,54884.0,0.0992]
[1725836763426,0.02937912,54890.0,54879.0,0.073]
[1725836763427,0.75810912,54890.0,54889.0,0.028]
[1725836763644,0.85810912,54890.0,54889.0,0.028]
[1725836763891,0.86361782,54890.0,54889.0,0.014]
[1725836764121,0.12937912,54890.0,54889.0,0.014]
[1725836764369,0.27512512,54890.0,54889.0,0.1081]
[1725836764601,0.100813,54890.0,54889.0,0.0941]
[1725836764814,0.146559,54890.0,54889.0,0.1081]
[1725836765028,0.100813,54890.0,54889.0,0.1221]
[1725836765257,0.100813,54890.0,54889.0,0.253848]
[1725836765470,0.000813,54890.0,54889.0,0.267848]
[1725836765683,0.000813,54890.0,54889.0,0.1081]
[1725836766123,0.000813,54890.0,54889.0,0.1221]
[1725836766345,0.000813,54890.0,54889.0,0.267848]
[1725836766571,0.000813,54890.0,54889.0,0.1081]
[1725836766813,0.000813,54890.0,54880.0,0.50899756]
[1725836766814,0.074513,54890.0,54885.0,0.0941]
[1725836767016,0.074513,54890.0,54875.0,0.21845856]
[1725836767017,0.14578,54878.0,54876.0,0.0941]
[1725836767264,0.291536,54882.0,54876.0,0.0941]
[1725836767498,0.145773,54880.0,54876.0,0.0941]
[1725836767714,0.145773,54880.0,54876.0,0.239883]
[1725836767926,0.291523,54884.0,54876.0,0.239883]
[1725836767927,0.14577,54881.0,54877.0,0.0239883]
[1725836768199,0.291523,54884.0,54876.0,0.0941]
[1725836768633,0.145772,54880.0,54876.0,0.1081]
[1725836768866,0.12856883,54889.0,54876.0,0.253882]
[1725836769121,0.145765,54883.0,54879.0,0.145774]
[1725836769312,0.1,54888.0,54879.0,0.145774]
[1725836769313,0.1,54888.0,54880.0,0.145771]
[1725836769531,0.02857029,54886.0,54881.0,0.320069]
[1725836769787,0.145762,54884.0,54881.0,0.1743]
[1725836770013,0.02857029,54886.0,54881.0,0.1743]
[1725836770231,0.145763,54884.0,54881.0,0.1743]
[1725836770879,0.145762,54884.0,54881.0,0.1743]
[1725836771094,0.145765,54883.0,54881.0,0.1147]
[1725836771333,0.512101,54882.0,54881.0,0.014]
[1725836771561,0.512101,54882.0,54876.0,0.0977]
[1725836771562,0.466334,54882.0,54876.0,0.0977]
[1725836771789,0.1,54881.0,54879.0,0.014]
[1725836772006,0.145772,54880.0,54879.0,0.014]
[1725836772247,0.14578,54877.0,54876.0,0.0977]
[1725836772515,0.145809,54866.0,54865.0,0.0977]
[1725836772740,0.145799,54870.0,54866.0,0.145809]
[1725836772925,0.145799,54870.0,54865.0,0.0977]
[1725836772926,0.291579,54874.0,54867.0,0.145806]
[1725836773132,0.145795,54872.0,54867.0,0.1993192]
[1725836773341,0.145795,54872.0,54868.0,0.145804]
[1725836773961,0.145792,54873.0,54868.0,0.145804]
[1725836774363,0.145792,54873.0,54868.0,0.159804]
[1725836774572,0.1,54876.0,54870.0,0.0994]
[1725836774787,0.02857381,54877.0,54870.0,0.0994]
[1725836774788,0.17435481,54877.0,54871.0,0.224394]
[1725836774990,0.17435481,54877.0,54870.0,0.0994]
[1725836774991,0.1,54876.0,54870.0,0.0994]
[1725836775186,0.1,54876.0,54868.0,0.014]
[1725836775187,0.145801,54869.0,54868.0,0.014]
[1725836775415,0.437404,54869.0,54868.0,0.014]
[1725836775619,0.145801,54869.0,54868.0,0.014]
[1725836776473,0.145804,54868.0,54866.0,0.0925]
[1725836776905,0.291596,54871.0,54866.0,0.0925]
[1725836777106,0.291572,54875.0,54868.0,0.014]
[1725836777355,0.145791,54873.0,54868.0,0.159802]
[1725836777550,0.1,54872.0,54868.0,0.159802]
[1725836778306,0.245794,54872.0,54868.0,0.159802]
[1725836778733,0.1,54872.0,54868.0,0.159802]
[1725836778943,0.02857381,54877.0,54875.0,0.145785]
[1725836779151,0.291525,54884.0,54876.0,0.0986]
[1725836779368,0.291541,54881.0,54876.0,0.0986]
[1725836779616,0.1,54880.0,54876.0,0.0986]
[1725836779864,0.145778,54878.0,54876.0,0.0986]
[1725836780070,0.1,54877.0,54876.0,0.0986]
[1725836780489,0.1,54877.0,54876.0,0.1026]
[1725836781147,0.1,54879.0,54876.0,0.1026]
[1725836781384,0.145773,54880.0,54876.0,0.1026]
[1725836781595,0.1,54879.0,54877.0,0.0539959]
[1725836782728,0.1,54880.0,54877.0,0.0539959]
[1725836783159,0.1,54880.0,54877.0,0.0639959]
[1725836783376,0.1,54880.0,54877.0,0.0539959]
[1725836784004,0.1,54880.0,54877.0,0.0639959]
[1725836784406,0.1,54880.0,54877.0,0.0539959]
[1725836784829,0.1,54880.0,54877.0,0.2217749]
[1725836785035,0.145769,54882.0,54878.0,0.06119489]
[1725836785288,0.59213935,54892.0,54881.0,0.0934]
[1725836785515,0.145764,54883.0,54881.0,0.0934]
[1725836785749,0.0799,54893.0,54881.0,0.0934]
[1725836785971,0.14576,54885.0,54881.0,0.0934]
[1725836786201,0.14576,54885.0,54881.0,0.239168]
[1725836786463,0.145752,54888.0,54883.0,0.0784]